{"text_format":"1","workbook":"xlsx","n_sheets":2,"sheets":["Данные","Лист1"],"not_rendered":{"charts":0,"images":0,"macros":1,"external_links":0,"defined_names":4,"comments":0,"pivot_tables":0},"unopened":[],"bounds":{"document_bytes":16777216,"sheet_cells":100000,"rows_first":2000,"rows_last":500,"rows_between":2000,"halvings":0,"cell_chars":16384,"cell_head_chars":4096},"cells_cut":0,"cells_raw":0,"read":"whole","date_system":"1900"}

{"sheet":"Данные","index":0,"n_rows":103,"n_cols":10,"rows_kept":103,"cut":false,"hidden":false,"merged":[[1,0,1,9]]}
[null,null,null,null,null,null,null,null,"Приложение №1"]
["Перечень актуальных и готовых к реализации невостребованных МТР"]
[]
["Наименование лота","Наименование ОГ","№ лота","№ позиции","Наименование неликвидных (НЛ) и невостребованных ликвидных (НВЛ) материалов","Ед. изм","Количество","Мин. цена реализации за ед., руб., без НДС ","Сумма, руб. без НДС","Место нахождения"]
["Железобетонные изделия","ПАО АНК \"Башнефть\" \"Башнефть-Новойл\"",1,1,"Балка Б1 черт.И-52.00","ШТ",4,10156.4,{"$f":"H5*G5","v":40625.599999999999},"450063, г. Уфа, ПАО АНК \"Башнефть\" \"Башнефть-Новойл\""]
["Железобетонные изделия","ПАО АНК \"Башнефть\" \"Башнефть-Новойл\"",1,2,"Колонна К13-6а","ШТ",1,11869.4,11869.4,"450063, г. Уфа, ПАО АНК \"Башнефть\" \"Башнефть-Новойл\""]
["Железобетонные изделия","ПАО АНК \"Башнефть\" \"Башнефть-Новойл\"",1,3,"Колонна К2-1","ШТ",1,36311.300000000003,36311.300000000003,"450063, г. Уфа, ПАО АНК \"Башнефть\" \"Башнефть-Новойл\""]
["Железобетонные изделия","ПАО АНК \"Башнефть\" \"Башнефть-Новойл\"",1,4,"Колонна К2-1","ШТ",1,36311.300000000003,36311.300000000003,"450063, г. Уфа, ПАО АНК \"Башнефть\" \"Башнефть-Новойл\""]
["Железобетонные изделия","ПАО АНК \"Башнефть\" \"Башнефть-Новойл\"",1,5,"Колонна К2-1-1","ШТ",1,13586.6,13586.6,"450063, г. Уфа, ПАО АНК \"Башнефть\" \"Башнефть-Новойл\""]
["Железобетонные изделия","ПАО АНК \"Башнефть\" \"Башнефть-Новойл\"",1,6,"Колонна К2-1-1","ШТ",4,54346.400000000001,217385.60000000001,"450063, г. Уфа, ПАО АНК \"Башнефть\" \"Башнефть-Новойл\""]
["Железобетонные изделия","ПАО АНК \"Башнефть\" \"Башнефть-Новойл\"",1,7,"Колонна К2-1-2","ШТ",2,29686.6,59373.2,"450063, г. Уфа, ПАО АНК \"Башнефть\" \"Башнефть-Новойл\""]
["Железобетонные изделия","ПАО АНК \"Башнефть\" \"Башнефть-Новойл\"",1,8,"Колонна К25-5-1","ШТ",2,24021.200000000001,48042.400000000001,"450063, г. Уфа, ПАО АНК \"Башнефть\" \"Башнефть-Новойл\""]
["Железобетонные изделия","ПАО АНК \"Башнефть\" \"Башнефть-Новойл\"",1,9,"Колонна К25-5-2","ШТ",2,16125.2,32250.400000000001,"450063, г. Уфа, ПАО АНК \"Башнефть\" \"Башнефть-Новойл\""]
["Железобетонные изделия","ПАО АНК \"Башнефть\" \"Башнефть-Новойл\"",1,10,"Колонна К33-5","ШТ",2,35327,70654,"450063, г. Уфа, ПАО АНК \"Башнефть\" \"Башнефть-Новойл\""]
["Железобетонные изделия","ПАО АНК \"Башнефть\" \"Башнефть-Новойл\"",1,11,"Колонна К8-6","ШТ",1,10138.700000000001,10138.700000000001,"450063, г. Уфа, ПАО АНК \"Башнефть\" \"Башнефть-Новойл\""]
["Железобетонные изделия","ПАО АНК \"Башнефть\" \"Башнефть-Новойл\"",1,12,"Колонна К8-6-Б","ШТ",1,12778.5,12778.5,"450063, г. Уфа, ПАО АНК \"Башнефть\" \"Башнефть-Новойл\""]
["Железобетонные изделия","ПАО АНК \"Башнефть\" \"Башнефть-Новойл\"",1,13,"Колонна К8-6-Б","ШТ",2,25350.2,50700.4,"450063, г. Уфа, ПАО АНК \"Башнефть\" \"Башнефть-Новойл\""]
["Железобетонные изделия","ПАО АНК \"Башнефть\" \"Башнефть-Новойл\"",1,14,"Колонна К8-6-В","ШТ",3,34918.5,104755.5,"450063, г. Уфа, ПАО АНК \"Башнефть\" \"Башнефть-Новойл\""]
["Железобетонные изделия","ПАО АНК \"Башнефть\" \"Башнефть-Новойл\"",1,15,"Панель стеновая НСП30-18","М3",2.9359999999999999,42219.68,123956.98048,"450063, г. Уфа, ПАО АНК \"Башнефть\" \"Башнефть-Новойл\""]
["Железобетонные изделия","ПАО АНК \"Башнефть\" \"Башнефть-Новойл\"",1,16,"Панель стеновая НСП30-18","М3",1.772,23443.56,41541.988320000004,"450063, г. Уфа, ПАО АНК \"Башнефть\" \"Башнефть-Новойл\""]
["Железобетонные изделия","ПАО АНК \"Башнефть\" \"Башнефть-Новойл\"",1,17,"Панель стеновая НСП30-18","М3",1.62,22177.800000000003,35928.036000000007,"450063, г. Уфа, ПАО АНК \"Башнефть\" \"Башнефть-Новойл\""]
["Железобетонные изделия","ПАО АНК \"Башнефть\" \"Башнефть-Новойл\"",1,18,"Панель стеновая НСП30-18","М3",1.62,23295.600000000002,37738.872000000003,"450063, г. Уфа, ПАО АНК \"Башнефть\" \"Башнефть-Новойл\""]
["Железобетонные изделия","ПАО АНК \"Башнефть\" \"Башнефть-Новойл\"",1,19,"Панель стеновая ПНК-2 ТП901-6-9989-КЖИ","М3",0.98,14984.199999999999,14684.515999999998,"450063, г. Уфа, ПАО АНК \"Башнефть\" \"Башнефть-Новойл\""]
["Железобетонные изделия","ПАО АНК \"Башнефть\" \"Башнефть-Новойл\"",1,20,"Панель стеновая СП25-9","М3",0.61599999999999999,6905.36,4253.7017599999999,"450063, г. Уфа, ПАО АНК \"Башнефть\" \"Башнефть-Новойл\""]
["Железобетонные изделия","ПАО АНК \"Башнефть\" \"Башнефть-Новойл\"",1,21,"Панель стеновая УСП20-18","М3",1.02,8823,8999.4600000000009,"450063, г. Уфа, ПАО АНК \"Башнефть\" \"Башнефть-Новойл\""]
["Железобетонные изделия","ПАО АНК \"Башнефть\" \"Башнефть-Новойл\"",1,22,"Перемычка 2ПБ13-1","ШТ",1,170,170,"450063, г. Уфа, ПАО АНК \"Башнефть\" \"Башнефть-Новойл\""]
["Железобетонные изделия","ПАО АНК \"Башнефть\" \"Башнефть-Новойл\"",1,23,"Перемычка 2ПБ29-4","ШТ",6,3360,20160,"450063, г. Уфа, ПАО АНК \"Башнефть\" \"Башнефть-Новойл\""]
["Железобетонные изделия","ПАО АНК \"Башнефть\" \"Башнефть-Новойл\"",1,24,"Перемычка 3ПБ16-37-п","ШТ",7,2520,17640,"450063, г. Уфа, ПАО АНК \"Башнефть\" \"Башнефть-Новойл\""]
["Железобетонные изделия","ПАО АНК \"Башнефть\" \"Башнефть-Новойл\"",1,25,"Перемычка 3ПБ-18-37-п","ШТ",2,900,1800,"450063, г. Уфа, ПАО АНК \"Башнефть\" \"Башнефть-Новойл\""]
["Железобетонные изделия","ПАО АНК \"Башнефть\" \"Башнефть-Новойл\"",1,26,"Перемычка 3ПБ-19-37-п","ШТ",1,380,380,"450063, г. Уфа, ПАО АНК \"Башнефть\" \"Башнефть-Новойл\""]
["Железобетонные изделия","ПАО АНК \"Башнефть\" \"Башнефть-Новойл\"",1,27,"Перемычка 5ПБ21-27П","ШТ",4,4240,16960,"450063, г. Уфа, ПАО АНК \"Башнефть\" \"Башнефть-Новойл\""]
["Железобетонные изделия","ПАО АНК \"Башнефть\" \"Башнефть-Новойл\"",1,28,"Перемычка 5ПБ21-27П","ШТ",3,2850,8550,"450063, г. Уфа, ПАО АНК \"Башнефть\" \"Башнефть-Новойл\""]
["Железобетонные изделия","ПАО АНК \"Башнефть\" \"Башнефть-Новойл\"",1,29,"Перемычка 5ПБ-36-20-п","ШТ",1,2330,2330,"450063, г. Уфа, ПАО АНК \"Башнефть\" \"Башнефть-Новойл\""]
["Железобетонные изделия","ПАО АНК \"Башнефть\" \"Башнефть-Новойл\"",1,30,"Перемычка 5ПБ-36-20-п","ШТ",2,4600,9200,"450063, г. Уфа, ПАО АНК \"Башнефть\" \"Башнефть-Новойл\""]
["Железобетонные изделия","ПАО АНК \"Башнефть\" \"Башнефть-Новойл\"",1,31,"Перемычка брусковая 2ПБ-16-2-п","ШТ",5,1050,5250,"450063, г. Уфа, ПАО АНК \"Башнефть\" \"Башнефть-Новойл\""]
["Железобетонные изделия","ПАО АНК \"Башнефть\" \"Башнефть-Новойл\"",1,32,"Плита перекрытия каналов ПО-4","ШТ",4,26960,107840,"450063, г. Уфа, ПАО АНК \"Башнефть\" \"Башнефть-Новойл\""]
["Железобетонные изделия","ПАО АНК \"Башнефть\" \"Башнефть-Новойл\"",1,33,"Плита перекрытия каналов ПО-4","ШТ",4,26960,107840,"450063, г. Уфа, ПАО АНК \"Башнефть\" \"Башнефть-Новойл\""]
["Железобетонные изделия","ПАО АНК \"Башнефть\" \"Башнефть-Новойл\"",1,34,"Плита перекрытия П1 черт.И-53.00","ШТ",1,5540,5540,"450063, г. Уфа, ПАО АНК \"Башнефть\" \"Башнефть-Новойл\""]
["Железобетонные изделия","ПАО АНК \"Башнефть\" \"Башнефть-Новойл\"",1,35,"Плита перекрытия УП20-15","ШТ",2,19020,38040,"450063, г. Уфа, ПАО АНК \"Башнефть\" \"Башнефть-Новойл\""]
["Железобетонные изделия","ПАО АНК \"Башнефть\" \"Башнефть-Новойл\"",1,36,"Плита ребристая 2П1-4 А-IV Т-2","ШТ",1,26050,26050,"450063, г. Уфа, ПАО АНК \"Башнефть\" \"Башнефть-Новойл\""]
["Железобетонные изделия","ПАО АНК \"Башнефть\" \"Башнефть-Новойл\"",1,37,"Плита ребристая 2П1-4 А-IV Т-2","ШТ",1,26050,26050,"450063, г. Уфа, ПАО АНК \"Башнефть\" \"Башнефть-Новойл\""]
["Железобетонные изделия","ПАО АНК \"Башнефть\" \"Башнефть-Новойл\"",1,38,"Ригель Р1-ТП901-6-99.89-КЖ.И","ШТ",3,32820,98460,"450063, г. Уфа, ПАО АНК \"Башнефть\" \"Башнефть-Новойл\""]
["Железобетонные изделия","ПАО АНК \"Башнефть\" \"Башнефть-Новойл\"",1,39,"Стойка коническая СК26.2-1.1 для ЛЭП","ШТ",1,411310,411310,"450063, г. Уфа, ПАО АНК \"Башнефть\" \"Башнефть-Новойл\""]
["Защитные покрытия","ПАО АНК \"Башнефть\" \"Башнефть-Новойл\"",2,40,"Мастика битумная кровельная МБК-Г-55","КГ",35045.129999999997,203261.75399999999,7123334592.9580193,"450063, г. Уфа, ПАО АНК \"Башнефть\" \"Башнефть-Новойл\""]
["Защитные покрытия","ПАО АНК \"Башнефть\" \"Башнефть-Новойл\"",2,41,"Мастика битумная кровельная МБК-Г-55","КГ",898.47,5211.1260000000002,4682040.3772200001,"450063, г. Уфа, ПАО АНК \"Башнефть\" \"Башнефть-Новойл\""]
["Защитные покрытия","ПАО АНК \"Башнефть\" \"Башнефть-Новойл\"",2,42,"Мастика битумная кровельная МБК-Г-55","КГ",207.4,1202.92,249485.60800000001,"450063, г. Уфа, ПАО АНК \"Башнефть\" \"Башнефть-Новойл\""]
["Защитные покрытия","ПАО АНК \"Башнефть\" \"Башнефть-Новойл\"",2,43,"Мастика битумно-резиновая изол. МБР-90","КГ",6470,7117.0000000000009,46046990.000000007,"450063, г. Уфа, ПАО АНК \"Башнефть\" \"Башнефть-Новойл\""]
["Защитные покрытия","ПАО АНК \"Башнефть\" \"Башнефть-Новойл\"",2,44,"Мастика МБК-Г-65","Т",1.494,10102.428,15093.027431999999,"450063, г. Уфа, ПАО АНК \"Башнефть\" \"Башнефть-Новойл\""]
["Защитные покрытия","ПАО АНК \"Башнефть\" \"Башнефть-Новойл\"",2,45,"Мастика МБК-Г-65","Т",1.6E-2,108.19200000000001,1.7310720000000002,"450063, г. Уфа, ПАО АНК \"Башнефть\" \"Башнефть-Новойл\""]
["Защитные покрытия","ПАО АНК \"Башнефть\" \"Башнефть-Новойл\"",2,46,"Мастика МБК-Г-75","Т",6.65,20482,136205.30000000002,"450063, г. Уфа, ПАО АНК \"Башнефть\" \"Башнефть-Новойл\""]
["Защитные покрытия","ПАО АНК \"Башнефть\" \"Башнефть-Новойл\"",2,47,"Раств.огнест.PYROMIX MSX-S1 7206104 20кг","УПК",1,8290,8290,"450063, г. Уфа, ПАО АНК \"Башнефть\" \"Башнефть-Новойл\""]
["Защитные покрытия","ПАО АНК \"Башнефть\" \"Башнефть-Новойл\"",2,48,"Раств.огнест.PYROMIX MSX-S1 7206104 20кг","УПК",1,8150,8150,"450063, г. Уфа, ПАО АНК \"Башнефть\" \"Башнефть-Новойл\""]
["Защитные покрытия","ПАО АНК \"Башнефть\" \"Башнефть-Новойл\"",2,49,"Состав огнезащитный СГК-2","КГ",1898,132860,252168280,"450063, г. Уфа, ПАО АНК \"Башнефть\" \"Башнефть-Новойл\""]
["Защитные покрытия","ПАО АНК \"Башнефть\" \"Башнефть-Новойл\"",2,50,"Состав огнезащитный СГК-2","КГ",12700,889000,11290300000,"450063, г. Уфа, ПАО АНК \"Башнефть\" \"Башнефть-Новойл\""]
["Защитные покрытия","ПАО АНК \"Башнефть\" \"Башнефть-Новойл\"",2,51,"Состав огнезащитный СГК-2","КГ",2707,189490,512949430,"450063, г. Уфа, ПАО АНК \"Башнефть\" \"Башнефть-Новойл\""]
["Кирпич огнеупорный","ПАО АНК \"Башнефть\" \"Башнефть-Новойл\"",3,52,"Кирпич огнеупорный марка ОК-24","Т",1.0309999999999999,16887.78,17411.301179999999,"450063, г. Уфа, ПАО АНК \"Башнефть\" \"Башнефть-Новойл\""]
["Кирпич огнеупорный","ПАО АНК \"Башнефть\" \"Башнефть-Новойл\"",3,53,"Кирпич огнеупорный марка ОК-24","Т",1.0269999999999999,16822.259999999998,17276.461019999995,"450063, г. Уфа, ПАО АНК \"Башнефть\" \"Башнефть-Новойл\""]
["Кирпич огнеупорный","ПАО АНК \"Башнефть\" \"Башнефть-Новойл\"",3,54,"Кирпич огнеупорный марка ОК-24","Т",3.3,54054,178378.19999999998,"450063, г. Уфа, ПАО АНК \"Башнефть\" \"Башнефть-Новойл\""]
["Кирпич огнеупорный","ПАО АНК \"Башнефть\" \"Башнефть-Новойл\"",3,55,"Кирпич огнеупорный марка ОК-51","Т",0.34599999999999997,5667.48,1960.9480799999997,"450063, г. Уфа, ПАО АНК \"Башнефть\" \"Башнефть-Новойл\""]
["Кирпич огнеупорный","ПАО АНК \"Башнефть\" \"Башнефть-Новойл\"",3,56,"Кирпич огнеупорный марка ОК-56","Т",3.044,49860.72,151776.03168000001,"450063, г. Уфа, ПАО АНК \"Башнефть\" \"Башнефть-Новойл\""]
["Кирпич огнеупорный","ПАО АНК \"Башнефть\" \"Башнефть-Новойл\"",3,57,"Кирпич огнеупорный марка ОК-56","Т",1.0880000000000001,17821.440000000002,19389.726720000002,"450063, г. Уфа, ПАО АНК \"Башнефть\" \"Башнефть-Новойл\""]
["Кирпич огнеупорный","ПАО АНК \"Башнефть\" \"Башнефть-Новойл\"",3,58,"Кирпич огнеупорный марка ОК-56","Т",1.3320000000000001,21818.16,29061.789120000001,"450063, г. Уфа, ПАО АНК \"Башнефть\" \"Башнефть-Новойл\""]
["Кирпич огнеупорный","ПАО АНК \"Башнефть\" \"Башнефть-Новойл\"",3,59,"Кирпич огнеупорный марка ОК-56","Т",0.15,2457,368.55,"450063, г. Уфа, ПАО АНК \"Башнефть\" \"Башнефть-Новойл\""]
["Кирпич огнеупорный","ПАО АНК \"Башнефть\" \"Башнефть-Новойл\"",3,60,"Кирпич огнеупорный марка ОК-58","Т",0.86799999999999999,14217.84,12341.08512,"450063, г. Уфа, ПАО АНК \"Башнефть\" \"Башнефть-Новойл\""]
["Кирпич огнеупорный","ПАО АНК \"Башнефть\" \"Башнефть-Новойл\"",3,61,"Кирпич огнеупорный марка ША-I-27","Т",12.724,208419.12,2651924.8828799999,"450063, г. Уфа, ПАО АНК \"Башнефть\" \"Башнефть-Новойл\""]
["Плита ROCKWOOL ","ПАО АНК \"Башнефть\" \"Башнефть-Новойл\"",4,62,"Плита ROCKWOOL Лайт Баттс 100мм","М3",51.1,94024,4804626.4000000004,"450063, г. Уфа, ПАО АНК \"Башнефть\" \"Башнефть-Новойл\""]
["Плита ROCKWOOL ","ПАО АНК \"Башнефть\" \"Башнефть-Новойл\"",4,63,"Плита ROCKWOOL Руф Баттс Оптима 140мм","М3",77.724000000000004,395615.16000000003,30748792.695840005,"450063, г. Уфа, ПАО АНК \"Башнефть\" \"Башнефть-Новойл\""]
["Плита ROCKWOOL ","ПАО АНК \"Башнефть\" \"Башнефть-Новойл\"",4,64,"Плита ROCKWOOL Руф Баттс Оптима 140мм","М3",30.41,154786.9,4707069.6289999997,"450063, г. Уфа, ПАО АНК \"Башнефть\" \"Башнефть-Новойл\""]
["Строительные материалы","ПАО АНК \"Башнефть\" \"Башнефть-Новойл\"",5,65,"Глинозем алюминия Г-00 ГОСТ 30558","Т",1,27300,{"$f":"H69*G69","v":27300},"450063, г. Уфа, ПАО АНК \"Башнефть\" \"Башнефть-Новойл\""]
["Строительные материалы","ПАО АНК \"Башнефть\" \"Башнефть-Новойл\"",5,66,"Дождеприемник ДК","ШТ",1,3097.5,3097.5,"450063, г. Уфа, ПАО АНК \"Башнефть\" \"Башнефть-Новойл\""]
["Строительные материалы","ПАО АНК \"Башнефть\" \"Башнефть-Новойл\"",5,67,"Дробь чугунная ДЧК 08","КГ",3000,46500,139500000,"450063, г. Уфа, ПАО АНК \"Башнефть\" \"Башнефть-Новойл\""]
["Строительные материалы","ПАО АНК \"Башнефть\" \"Башнефть-Новойл\"",5,68,"Заполнитель Бакор фр.0-5","Т",7,520443,3643101,"450063, г. Уфа, ПАО АНК \"Башнефть\" \"Башнефть-Новойл\""]
["Строительные материалы","ПАО АНК \"Башнефть\" \"Башнефть-Новойл\"",5,69,"Кирпич ША-49","Т",2.8420000000000001,46551.96,132300.67032,"450063, г. Уфа, ПАО АНК \"Башнефть\" \"Башнефть-Новойл\""]
["Строительные материалы","ПАО АНК \"Башнефть\" \"Башнефть-Новойл\"",5,70,"Кирпич ША-49","Т",1.1779999999999999,19295.64,22730.263919999998,"450063, г. Уфа, ПАО АНК \"Башнефть\" \"Башнефть-Новойл\""]
["Строительные материалы","ПАО АНК \"Башнефть\" \"Башнефть-Новойл\"",5,71,"Кирпич ША-49","Т",1.6,26208,41932.800000000003,"450063, г. Уфа, ПАО АНК \"Башнефть\" \"Башнефть-Новойл\""]
["Строительные материалы","ПАО АНК \"Башнефть\" \"Башнефть-Новойл\"",5,72,"Колено чугунное 100","ШТ",2,380.6,761.2,"450063, г. Уфа, ПАО АНК \"Башнефть\" \"Башнефть-Новойл\""]
["Строительные материалы","ПАО АНК \"Башнефть\" \"Башнефть-Новойл\"",5,73,"Колено чугунное 100","ШТ",7,312.2,2185.4,"450063, г. Уфа, ПАО АНК \"Башнефть\" \"Башнефть-Новойл\""]
["Строительные материалы","ПАО АНК \"Башнефть\" \"Башнефть-Новойл\"",5,74,"Колено чугунное 100","ШТ",1,44.6,44.6,"450063, г. Уфа, ПАО АНК \"Башнефть\" \"Башнефть-Новойл\""]
["Строительные материалы","ПАО АНК \"Башнефть\" \"Башнефть-Новойл\"",5,75,"Колено чугунное 200","ШТ",1,11039.2,11039.2,"450063, г. Уфа, ПАО АНК \"Башнефть\" \"Башнефть-Новойл\""]
["Строительные материалы","ПАО АНК \"Башнефть\" \"Башнефть-Новойл\"",5,76,"Колено чугунное К-50 ГОСТ 6942-98","ШТ",4,335.6,1342.4,"450063, г. Уфа, ПАО АНК \"Башнефть\" \"Башнефть-Новойл\""]
["Строительные материалы","ПАО АНК \"Башнефть\" \"Башнефть-Новойл\"",5,77,"Муфта асбестоцементная БНМ 100","ШТ",50,1889.9999999999998,94499.999999999985,"450063, г. Уфа, ПАО АНК \"Башнефть\" \"Башнефть-Новойл\""]
["Строительные материалы","ПАО АНК \"Башнефть\" \"Башнефть-Новойл\"",5,78,"Муфта асбестоцементная БНМ 100","ШТ",9,340.2,3061.7999999999997,"450063, г. Уфа, ПАО АНК \"Башнефть\" \"Башнефть-Новойл\""]
["Строительные материалы","ПАО АНК \"Башнефть\" \"Башнефть-Новойл\"",5,79,"Муфта асбестоцементная БНМ 150","ШТ",2,126,252,"450063, г. Уфа, ПАО АНК \"Башнефть\" \"Башнефть-Новойл\""]
["Строительные материалы","ПАО АНК \"Башнефть\" \"Башнефть-Новойл\"",5,80,"Муфта асбестоцементная БНМ 200","ШТ",14,1764,24696,"450063, г. Уфа, ПАО АНК \"Башнефть\" \"Башнефть-Новойл\""]
["Строительные материалы","ПАО АНК \"Башнефть\" \"Башнефть-Новойл\"",5,81,"Муфта асбестоцементная ВТ-9 100","ШТ",3,315,945,"450063, г. Уфа, ПАО АНК \"Башнефть\" \"Башнефть-Новойл\""]
["Строительные материалы","ПАО АНК \"Башнефть\" \"Башнефть-Новойл\"",5,82,"Обертка Полилен 40-ОБ-63","КГ",52,4804.8,249849.60000000001,"450063, г. Уфа, ПАО АНК \"Башнефть\" \"Башнефть-Новойл\""]
["Строительные материалы","ПАО АНК \"Башнефть\" \"Башнефть-Новойл\"",5,83,"Паста колеровочная Палитра №18 черная","Л",1,200,200,"450063, г. Уфа, ПАО АНК \"Башнефть\" \"Башнефть-Новойл\""]
["Строительные материалы","ПАО АНК \"Башнефть\" \"Башнефть-Новойл\"",5,84,"Паста колеровочная Палитра №18 черная","Л",2,400,800,"450063, г. Уфа, ПАО АНК \"Башнефть\" \"Башнефть-Новойл\""]
["Строительные материалы","ПАО АНК \"Башнефть\" \"Башнефть-Новойл\"",5,85,"Покрытие огнезащитное по дереву ТРИЗ","КГ",333,6660,2217780,"450063, г. Уфа, ПАО АНК \"Башнефть\" \"Башнефть-Новойл\""]
["Строительные материалы","ПАО АНК \"Башнефть\" \"Башнефть-Новойл\"",5,86,"Прокладка Д-300-6,3-ТМКЩ-С","ШТ",2,1120,2240,"450063, г. Уфа, ПАО АНК \"Башнефть\" \"Башнефть-Новойл\""]
["Строительные материалы","ПАО АНК \"Башнефть\" \"Башнефть-Новойл\"",5,87,"Сетка арм. 2С 14A-III-200 600Х600","КГ",200,124000,24800000,"450063, г. Уфа, ПАО АНК \"Башнефть\" \"Башнефть-Новойл\""]
["Строительные материалы","ПАО АНК \"Башнефть\" \"Башнефть-Новойл\"",5,88,"Сетка арм. 4С 5Вр1-100 550х550","КГ",478.8,19152,9169977.5999999996,"450063, г. Уфа, ПАО АНК \"Башнефть\" \"Башнефть-Новойл\""]
["Строительные материалы","ПАО АНК \"Башнефть\" \"Башнефть-Новойл\"",5,89,"Сетка пров. тканая 2-0,5-0,25 НУ","М2",125,20000,2500000,"450063, г. Уфа, ПАО АНК \"Башнефть\" \"Башнефть-Новойл\""]
["Строительные материалы","ПАО АНК \"Башнефть\" \"Башнефть-Новойл\"",5,90,"Сетка сварная 5Вр-1 100 ГОСТ 8478","Т",6.0000000000000001E-3,239.4,1.4364000000000001,"450063, г. Уфа, ПАО АНК \"Башнефть\" \"Башнефть-Новойл\""]
["Строительные материалы","ПАО АНК \"Башнефть\" \"Башнефть-Новойл\"",5,91,"Сетка тк. П 5 0.7х5мм НУ ГОСТ 3826","М2",33,1650,54450,"450063, г. Уфа, ПАО АНК \"Башнефть\" \"Башнефть-Новойл\""]
["Строительные материалы","ПАО АНК \"Башнефть\" \"Башнефть-Новойл\"",5,92,"Скоба МН801 1.400-15","ШТ",6,420,2520,"450063, г. Уфа, ПАО АНК \"Башнефть\" \"Башнефть-Новойл\""]
["Строительные материалы","ПАО АНК \"Башнефть\" \"Башнефть-Новойл\"",5,93,"Скребок WEM302700-T05 (270х282,02х8,4)","ШТ",4,109720,438880,"450063, г. Уфа, ПАО АНК \"Башнефть\" \"Башнефть-Новойл\""]
["Строительные материалы","ПАО АНК \"Башнефть\" \"Башнефть-Новойл\"",5,94,"Труба асбестоцементная ВТ-9 100х3950","ШТ",4,2400,9600,"450063, г. Уфа, ПАО АНК \"Башнефть\" \"Башнефть-Новойл\""]
["Строительные материалы","ПАО АНК \"Башнефть\" \"Башнефть-Новойл\"",5,95,"Труба БНМ 150-3950","ШТ",3,1410,4230,"450063, г. Уфа, ПАО АНК \"Башнефть\" \"Башнефть-Новойл\""]
["Строительные материалы","ПАО АНК \"Башнефть\" \"Башнефть-Новойл\"",5,96,"Труба БНТ 100-3950","ШТ",21,6720,141120,"450063, г. Уфа, ПАО АНК \"Башнефть\" \"Башнефть-Новойл\""]
["Строительные материалы","ПАО АНК \"Башнефть\" \"Башнефть-Новойл\"",5,97,"Труба БНТ 100-3950","ШТ",1,320,320,"450063, г. Уфа, ПАО АНК \"Башнефть\" \"Башнефть-Новойл\""]
["Строительные материалы","ПАО АНК \"Башнефть\" \"Башнефть-Новойл\"",5,98,"Х Вата кипная","КГ",100,12000,1200000,"450063, г. Уфа, ПАО АНК \"Башнефть\" \"Башнефть-Новойл\""]
["Строительные материалы","ПАО АНК \"Башнефть\" \"Башнефть-Новойл\"",5,99,"Х Элемент проходной серый","ШТ",2,660,1320,"450063, г. Уфа, ПАО АНК \"Башнефть\" \"Башнефть-Новойл\""]

{"sheet":"Лист1","index":1,"n_rows":0,"n_cols":0,"rows_kept":0,"cut":false,"hidden":false,"merged":[]}